Workbook

Sheet Net worth
B2: Last update: 01 Aug 2025 | E2: 2025
B3: in AUD | E3: Jan | F3: Feb | G3: Mar | H3: Apr | I3: May | J3: Jun | K3: Jul | L3: Aug | M3: Sep | N3: Oct | O3: Nov | P3: Dec
B5: Total net worth | E5: =E8-E36 -> $1,403 | F5: =F8-F36 -> $1,463 | G5: =G8-G36 -> $1,523 | H5: =H8-H36 -> $1,583 | I5: =I8-I36 -> $1,645 | J5: =J8-J36 -> $1,705 | K5: =K8-K36 -> $1,768 | L5: =L8-L36 -> $1,830 | M5: =M8-M36 -> $1,892 | N5: =N8-N36 -> $1,801 | O5: =O8-O36 -> $1,710 | P5: =P8-P36 -> $1,952
B6: Growth | E6: =IFERROR((E5-#REF!)/#REF!,0) -> 0.0% | F6: =IFERROR((F5-E5)/E5,0) -> 4.3% | G6: =IFERROR((G5-F5)/F5,0) -> 4.1% | H6: =IFERROR((H5-G5)/G5,0) -> 3.9% | I6: =IFERROR((I5-H5)/H5,0) -> 3.9% | J6: =IFERROR((J5-I5)/I5,0) -> 3.6% | K6: =IFERROR((K5-J5)/J5,0) -> 3.7% | L6: =IFERROR((L5-K5)/K5,0) -> 3.5% | M6: =IFERROR((M5-L5)/L5,0) -> 3.4% | N6: =IFERROR((N5-M5)/M5,0) -> -4.8% | O6: =IFERROR((O5-N5)/N5,0) -> -5.1% | P6: =IFERROR((P5-O5)/O5,0) -> 14.2%
B8: Assets | E8: =E9+E13+E16+E20+E25+E28+E32 -> $3,810 | F8: =F9+F13+F16+F20+F25+F28+F32 -> $3,839 | G8: =G9+G13+G16+G20+G25+G28+G32 -> $3,868 | H8: =H9+H13+H16+H20+H25+H28+H32 -> $3,897 | I8: =I9+I13+I16+I20+I25+I28+I32 -> $3,928 | J8: =J9+J13+J16+J20+J25+J28+J32 -> $3,957 | K8: =K9+K13+K16+K20+K25+K28+K32 -> $3,989 | L8: =L9+L13+L16+L20+L25+L28+L32 -> $4,020 | M8: =M9+M13+M16+M20+M25+M28+M32 -> $4,052 | N8: =N9+N13+N16+N20+N25+N28+N32 -> $3,931 | O8: =O9+O13+O16+O20+O25+O28+O32 -> $3,810 | P8: =P9+P13+P16+P20+P25+P28+P32 -> $4,022
B9: Deposits | E9: =SUM(E10:E12) -> 0 | F9: 0 | G9: 0 | H9: 0 | I9: 0 | J9: 0 | K9: 0 | L9: 0 | M9: 0 | N9: 0 | O9: 0 | P9: 0
B10: Bank 1 Acc
B11: Bank 2 Acc
B13: Stocks, ETFs | E13: =SUM(E14:E14) -> $10 | F13: =SUM(F14:F14) -> $9 | G13: =SUM(G14:G14) -> $8 | H13: =SUM(H14:H14) -> $7 | I13: =SUM(I14:I14) -> $8 | J13: =SUM(J14:J14) -> $7 | K13: =SUM(K14:K14) -> $9 | L13: =SUM(L14:L14) -> $10 | M13: =SUM(M14:M14) -> $12 | N13: =SUM(N14:N14) -> $11 | O13: =SUM(O14:O14) -> $10 | P13: =SUM(P14:P14) -> $12
B14: Company 1 Stock | E14: $10 | F14: $9 | G14: $8 | H14: $7 | I14: $8 | J14: $7 | K14: $9 | L14: $10 | M14: $12 | N14: $11 | O14: $10 | P14: $12
B16: Real estate | E16: =SUM(E17:E18) -> $3,000 | F16: =SUM(F17:F18) -> $3,000 | G16: =SUM(G17:G18) -> $3,000 | H16: =SUM(H17:H18) -> $3,000 | I16: =SUM(I17:I18) -> $3,000 | J16: =SUM(J17:J18) -> $3,000 | K16: =SUM(K17:K18) -> $3,000 | L16: =SUM(L17:L18) -> $3,000 | M16: =SUM(M17:M18) -> $3,000 | N16: =SUM(N17:N18) -> $3,000 | O16: =SUM(O17:O18) -> $3,000 | P16: =SUM(P17:P18) -> $3,000
B17: Brisbane Property | E17: $1,000 | F17: $1,000 | G17: $1,000 | H17: $1,000 | I17: $1,000 | J17: $1,000 | K17: $1,000 | L17: $1,000 | M17: $1,000 | N17: $1,000 | O17: $1,000 | P17: $1,000
B18: Sydney Property | E18: $2,000 | F18: $2,000 | G18: $2,000 | H18: $2,000 | I18: $2,000 | J18: $2,000 | K18: $2,000 | L18: $2,000 | M18: $2,000 | N18: $2,000 | O18: $2,000 | P18: $2,000
A20: $ 222.180 | B20: Crypto | E20: =SUM(E21:E23) -> $300 | F20: =SUM(F21:F23) -> $330 | G20: =SUM(G21:G23) -> $360 | H20: =SUM(H21:H23) -> $390 | I20: =SUM(I21:I23) -> $420 | J20: =SUM(J21:J23) -> $450 | K20: =SUM(K21:K23) -> $480 | L20: =SUM(L21:L23) -> $510 | M20: =SUM(M21:M23) -> $540 | N20: $420 | O20: $300 | P20: $510
B21: XRP - XRP | E21: $100 | F21: $110 | G21: $120 | H21: $130 | I21: $140 | J21: $150 | K21: $160 | L21: $170 | M21: $180 | N21: $140 | O21: $100 | P21: $170
B22: BTC - Bitcoin | E22: $100 | F22: $110 | G22: $120 | H22: $130 | I22: $140 | J22: $150 | K22: $160 | L22: $170 | M22: $180 | N22: $140 | O22: $100 | P22: $170
B23: ETH - Ethereum | E23: $100 | F23: $110 | G23: $120 | H23: $130 | I23: $140 | J23: $150 | K23: $160 | L23: $170 | M23: $180 | N23: $140 | O23: $100 | P23: $170
B25: Commodities | E25: =SUM(E26:E27) -> $200 | F25: $200 | G25: $200 | H25: $200 | I25: $200 | J25: $200 | K25: $200 | L25: $200 | M25: =SUM(M26:M27) -> $200 | N25: $200 | O25: $200 | P25: $200
B26: Gold | E26: $100 | F26: $100 | G26: $100 | H26: $100 | I26: $100 | J26: $100 | K26: $100 | L26: $100 | M26: $100 | N26: $100 | O26: $100 | P26: $100
B27: Silver | E27: $100 | F27: $100 | G27: $100 | H27: $100 | I27: $100 | J27: $100 | K27: $100 | L27: $100 | M27: $100 | N27: $100 | O27: $100 | P27: $100
B28: Objects of value | E28: =SUM(E29:E31) -> $100 | F28: $100 | G28: $100 | H28: $100 | I28: $100 | J28: $100 | K28: $100 | L28: $100 | M28: $100 | N28: $100 | O28: $100 | P28: $100
B29: Car | E29: $100 | F29: $100 | G29: $100 | H29: $100 | I29: $100 | J29: $100 | K29: $100 | L29: $100 | M29: $100 | N29: $100 | O29: $100 | P29: $100
B32: Receivables | E32: =SUM(E33:E34) -> $200 | F32: $200 | G32: $200 | H32: $200 | I32: $200 | J32: $200 | K32: $200 | L32: $200 | M32: $200 | N32: $200 | O32: $200 | P32: $200
B33: Super Annuation Account 1 | E33: $200 | F33: $200 | G33: $200 | H33: $200 | I33: $200 | J33: $200 | K33: $200 | L33: $200 | M33: $200 | N33: $200 | O33: $200 | P33: $200
B36: Liabilities | E36: =E37+E40 -> $2,407 | F36: =F37+F40 -> $2,376 | G36: $2,345 | H36: $2,314 | I36: $2,283 | J36: $2,252 | K36: $2,221 | L36: $2,190 | M36: $2,160 | N36: $2,130 | O36: $2,100 | P36: $2,070
B37: Consumer debt | E37: =SUM(E38:E39) -> $7 | F37: $6 | G37: $5 | H37: $4 | I37: $3 | J37: $2 | K37: $1 | L37: 0 | M37: 0 | N37: 0 | O37: 0 | P37: 0
B38: CC MasterCard | E38: $7 | F38: $6 | G38: $5 | H38: $4 | I38: $3 | J38: $2 | K38: $1 | L38: 0 | M38: 0 | N38: 0 | O38: 0 | P38: 0
B40: Mortgages | E40: =SUM(E41:E43) -> $2,400 | F40: =SUM(F41:F43) -> $2,370 | G40: =SUM(G41:G43) -> $2,340 | H40: =SUM(H41:H43) -> $2,310 | I40: =SUM(I41:I43) -> $2,280 | J40: =SUM(J41:J43) -> $2,250 | K40: =SUM(K41:K43) -> $2,220 | L40: =SUM(L41:L43) -> $2,190 | M40: =SUM(M41:M43) -> $2,160 | N40: =SUM(N41:N43) -> $2,130 | O40: =SUM(O41:O43) -> $2,100 | P40: =SUM(P41:P43) -> $2,070
B41: Brisbane Property | E41: $800 | F41: $790 | G41: $780 | H41: $770 | I41: $760 | J41: $750 | K41: $740 | L41: $730 | M41: $720 | N41: $710 | O41: $700 | P41: $690
B42: Sydney Property | E42: $1,600 | F42: $1,580 | G42: $1,560 | H42: $1,540 | I42: $1,520 | J42: $1,500 | K42: $1,480 | L42: $1,460 | M42: $1,440 | N42: $1,420 | O42: $1,400 | P42: $1,380
B45: Cashflow | E45: =E47-E54 -> $32 | F45: =F47-F54 -> $32 | G45: =G47-G54 -> $32 | H45: =H47-H54 -> $42 | I45: =I47-I54 -> $42 | J45: =J47-J54 -> $42 | K45: =K47-K54 -> $42 | L45: =L47-L54 -> $42 | M45: =M47-M54 -> $43 | N45: =N47-N54 -> $43 | O45: =O47-O54 -> $53 | P45: =P47-P54 -> $53
B47: Income (net) | E47: =SUM(E48:E52) -> $100 | F47: =SUM(F48:F52) -> $100 | G47: =SUM(G48:G52) -> $100 | H47: =SUM(H48:H52) -> $110 | I47: =SUM(I48:I52) -> $110 | J47: =SUM(J48:J52) -> $110 | K47: =SUM(K48:K52) -> $110 | L47: =SUM(L48:L52) -> $110 | M47: =SUM(M48:M52) -> $110 | N47: =SUM(N48:N52) -> $110 | O47: =SUM(O48:O52) -> $120 | P47: =SUM(P48:P52) -> $120
B48: Full-time / part time job (net) | E48: $60 | F48: $60 | G48: $60 | H48: $60 | I48: $60 | J48: $60 | K48: $60 | L48: $60 | M48: $60 | N48: $60 | O48: $60 | P48: $60
B49: Small Business | E49: $10 | F49: $10 | G49: $10 | H49: $20 | I49: $20 | J49: $20 | K49: $20 | L49: $20 | M49: $20 | N49: $20 | O49: $30 | P49: $30
B50: Rent Brisbane Property | E50: $10 | F50: $10 | G50: $10 | H50: $10 | I50: $10 | J50: $10 | K50: $10 | L50: $10 | M50: $10 | N50: $10 | O50: $10 | P50: $10
B51: Rent Sydney Property | E51: $20 | F51: $20 | G51: $20 | H51: $20 | I51: $20 | J51: $20 | K51: $20 | L51: $20 | M51: $20 | N51: $20 | O51: $20 | P51: $20
B54: Recurring payments | E54: =E55+E68+E73+E77 -> $69 | F54: =F55+F68+F73+F77 -> $68 | G54: =G55+G68+G73+G77 -> $68 | H54: =H55+H68+H73+H77 -> $68 | I54: =I55+I68+I73+I77 -> $68 | J54: =J55+J68+J73+J77 -> $68 | K54: =K55+K68+K73+K77 -> $68 | L54: =L55+L68+L73+L77 -> $68 | M54: =M55+M68+M73+M77 -> $68 | N54: =N55+N68+N73+N77 -> $67 | O54: =O55+O68+O73+O77 -> $67 | P54: =P55+P68+P73+P77 -> $67
B55: Living expenses (Bills) | E55: =SUM(E56:E67) -> $45 | F55: =SUM(F56:F67) -> $45 | G55: =SUM(G56:G67) -> $45 | H55: =SUM(H56:H67) -> $45 | I55: =SUM(I56:I67) -> $45 | J55: =SUM(J56:J67) -> $45 | K55: =SUM(K56:K67) -> $45 | L55: =SUM(L56:L67) -> $45 | M55: =SUM(M56:M67) -> $45 | N55: =SUM(N56:N67) -> $45 | O55: =SUM(O56:O67) -> $45 | P55: =SUM(P56:P67) -> $45
B56: Rent | E56: $15 | F56: $15 | G56: $15 | H56: $15 | I56: $15 | J56: $15 | K56: $15 | L56: $15 | M56: $15 | N56: $15 | O56: $15 | P56: $15
B57: Food | E57: $5 | F57: $5 | G57: $5 | H57: $5 | I57: $5 | J57: $5 | K57: $5 | L57: $5 | M57: $5 | N57: $5 | O57: $5 | P57: $5
B58: Fuel | E58: $4 | F58: $4 | G58: $4 | H58: $4 | I58: $4 | J58: $4 | K58: $4 | L58: $4 | M58: $4 | N58: $4 | O58: $4 | P58: $4
B59: Car Maintenance | E59: $1 | F59: $1 | G59: $1 | H59: $1 | I59: $1 | J59: $1 | K59: $1 | L59: $1 | M59: $1 | N59: $1 | O59: $1 | P59: $1
B60: Car registration ($6 for 6 month) | E60: $1 | F60: $1 | G60: $1 | H60: $1 | I60: $1 | J60: $1 | K60: $1 | L60: $1 | M60: $1 | N60: $1 | O60: $1 | P60: $1
B61: Cloth | E61: $2 | F61: $2 | G61: $2 | H61: $2 | I61: $2 | J61: $2 | K61: $2 | L61: $2 | M61: $2 | N61: $2 | O61: $2 | P61: $2
B62: Entertainment | E62: $2 | F62: $2 | G62: $2 | H62: $2 | I62: $2 | J62: $2 | K62: $2 | L62: $2 | M62: $2 | N62: $2 | O62: $2 | P62: $2
B63: House Maintenance | E63: $3 | F63: $3 | G63: $3 | H63: $3 | I63: $3 | J63: $3 | K63: $3 | L63: $3 | M63: $3 | N63: $3 | O63: $3 | P63: $3
B64: Medical | E64: $2 | F64: $2 | G64: $2 | H64: $2 | I64: $2 | J64: $2 | K64: $2 | L64: $2 | M64: $2 | N64: $2 | O64: $2 | P64: $2
B65: Travel | E65: $5 | F65: $5 | G65: $5 | H65: $5 | I65: $5 | J65: $5 | K65: $5 | L65: $5 | M65: $5 | N65: $5 | O65: $5 | P65: $5
B66: Utilities ($3 for 3 month electricity) | E66: $2 | F66: $2 | G66: $2 | H66: $2 | I66: $2 | J66: $2 | K66: $2 | L66: $2 | M66: $2 | N66: $2 | O66: $2 | P66: $2
B67: Water rates ($3 for 3 month) | E67: $3 | F67: $3 | G67: $3 | H67: $3 | I67: $3 | J67: $3 | K67: $3 | L67: $3 | M67: $3 | N67: $3 | O67: $3 | P67: $3
B68: Services | E68: =SUM(E69:E72) -> $6 | F68: =SUM(F69:F72) -> $6 | G68: =SUM(G69:G72) -> $6 | H68: =SUM(H69:H72) -> $6 | I68: =SUM(I69:I72) -> $6 | J68: =SUM(J69:J72) -> $6 | K68: =SUM(K69:K72) -> $6 | L68: =SUM(L69:L72) -> $6 | M68: =SUM(M69:M72) -> $6 | N68: =SUM(N69:N72) -> $6 | O68: =SUM(O69:O72) -> $6 | P68: =SUM(P69:P72) -> $6
B69: House Insurance | E69: $2 | F69: $2 | G69: $2 | H69: $2 | I69: $2 | J69: $2 | K69: $2 | L69: $2 | M69: $2 | N69: $2 | O69: $2 | P69: $2
B70: Mobile phone (monthly) | E70: $1 | F70: $1 | G70: $1 | H70: $1 | I70: $1 | J70: $1 | K70: $1 | L70: $1 | M70: $1 | N70: $1 | O70: $1 | P70: $1
B71: Internet (monthly) | E71: $1 | F71: $1 | G71: $1 | H71: $1 | I71: $1 | J71: $1 | K71: $1 | L71: $1 | M71: $1 | N71: $1 | O71: $1 | P71: $1
B72: Gym | E72: $2 | F72: $2 | G72: $2 | H72: $2 | I72: $2 | J72: $2 | K72: $2 | L72: $2 | M72: $2 | N72: $2 | O72: $2 | P72: $2
B73: Gifts | E73: =SUM(E74:E76) -> $8 | F73: =SUM(F74:F76) -> $8 | G73: =SUM(G74:G76) -> $8 | H73: =SUM(H74:H76) -> $8 | I73: $8 | J73: $8 | K73: $8 | L73: $8 | M73: $8 | N73: $8 | O73: $8 | P73: $8
B74: Family | E74: $5 | F74: $5 | G74: $5 | H74: $5 | I74: $5 | J74: $5 | K74: $5 | L74: $5 | M74: $5 | N74: $5 | O74: $5 | P74: $5
B75: Friends | E75: $3 | F75: $3 | G75: $3 | H75: $3 | I75: $3 | J75: $3 | K75: $3 | L75: $3 | M75: $3 | N75: $3 | O75: $3 | P75: $3
B77: Mortgage Interest | E77: =SUM(E78:E79) -> $10 | F77: =SUM(F78:F79) -> $10 | G77: =SUM(G78:G79) -> $10 | H77: =SUM(H78:H79) -> $10 | I77: =SUM(I78:I79) -> $10 | J77: $9 | K77: =SUM(K78:K79) -> $9 | L77: =SUM(L78:L79) -> $9 | M77: =SUM(M78:M79) -> $9 | N77: =SUM(N78:N79) -> $9 | O77: =SUM(O78:O79) -> $9 | P77: $9
B78: Brisbane Propert | E78: =E41*5/100/12 -> $3 | F78: =F41*5/100/12 -> $3 | G78: $3 | H78: $3 | I78: $3 | J78: $3 | K78: $3 | L78: $3 | M78: $3 | N78: $3 | O78: $3 | P78: $3
B79: Sydney Property | E79: =E42*5/100/12 -> $7 | F79: =F42*5/100/12 -> $7 | G79: $7 | H79: $6 | I79: $6 | J79: $6 | K79: $6 | L79: $6 | M79: $6 | N79: $6 | O79: $6 | P79: $6
O81: =O54-O47 -> -$53 | P81: =O81*2+(O81+2000)*10 -> $19,367

Sheet Expenses (hidden)
A1: Bank Account | B1: Date | C1: Narrative | D1: Debit Amount | E1: Credit Amount | F1: Balance | G1: Categories | H1: Serial
A2: 732109599583 | B2: 2021-08-26 | C2: EFTPOS DEBIT 0123312 COLES 8736 ORMEAU 26/08 | D2: 10.5 | F2: 28.85 | G2: POS
A3: 732109599583 | B3: 2021-08-26 | C3: EFTPOS DEBIT 0025578 KINGFISH AND CHIPS \ JACOBS WELL 26/08 | D3: 40.8 | F3: 39.35 | G3: POS
A4: 732109599583 | B4: 2021-08-26 | C4: EFTPOS DEBIT 0006889 NATURAL GREEN NURSER Y PIMPAMA 26/08 | D4: 17.9 | F4: 80.15 | G4: POS
A5: 732109599583 | B5: 2021-08-26 | C5: DEBIT CARD PURCHASE PAYPAL *CIMPRESSAUS 4029357733 AUS | D5: 162.92 | F5: 98.05 | G5: PAYMENT
A6: 732109599583 | B6: 2021-08-26 | C6: DEBIT CARD PURCHASE SCHWARTZ FAMILY CO PTY SURFERS PARA AUS | D6: 159.5 | F6: 260.97 | G6: PAYMENT
A7: 732109599583 | B7: 2021-08-26 | C7: DEBIT CARD PURCHASE ALDI STORES - UPPER CO UPPER COOMER AUS | D7: 57.05 | F7: 420.47 | G7: PAYMENT
A8: 732109599583 | B8: 2021-08-25 | C8: PAYMENT BY AUTHORITY TO GENFITTRAINING 328746228 | D8: 61 | F8: 477.52 | G8: PAYMENT
A9: 732109599583 | B9: 2021-08-25 | C9: EFTPOS DEBIT 0946135 MCDONALDS NERANG 0253 NERANG 24/08 | D9: 9.9 | F9: 538.52 | G9: POS
A10: 732109599583 | B10: 2021-08-24 | C10: EFTPOS DEBIT 0906339 TK MAXX COOMERA 1418 UPPER COOME 24/08 | D10: 44.97 | F10: 548.42 | G10: POS
A11: 732109599583 | B11: 2021-08-24 | C11: EFTPOS DEBIT 0686127 Gecko Vending - Wara rbWamuran 24/08 | D11: 2.2 | F11: 593.39 | G11: POS
A12: 732109599583 | B12: 2021-08-24 | C12: EFTPOS DEBIT 0686054 Gecko Vending - Wara rbWamuran 24/08 | D12: 3 | F12: 595.59 | G12: POS
A13: 732109599583 | B13: 2021-08-24 | C13: EFTPOS DEBIT 0006965 SPOTLIGHT \ UPPER COOMERA 24/08 | D13: 18 | F13: 598.59 | G13: POS
A14: 732109599583 | B14: 2021-08-24 | C14: DEBIT CARD PURCHASE BUNNINGS 612000 PIMPAMA AUS | D14: 591.51 | F14: 616.59 | G14: PAYMENT
A15: 732109599583 | B15: 2021-08-24 | C15: DEBIT CARD PURCHASE PAYPAL *WINESELLERS 4029357733 AUS | D15: 124.97 | F15: 1208.1 | G15: PAYMENT
A16: 732109599583 | B16: 2021-08-24 | C16: DEBIT CARD PURCHASE AMAZON MKTPLC AU SYDNEY SOUTH AUS | D16: 33.83 | F16: 1333.07 | G16: PAYMENT
A17: 732109599583 | B17: 2021-08-24 | C17: DEBIT CARD PURCHASE PAYPAL *SPOTIFY 35314369001 GBR | D17: 11.99 | F17: 1366.9 | G17: PAYMENT
A18: 732109599583 | B18: 2021-08-24 | C18: DEPOSIT ONLINE 2563459 TFR Westpac Cas | E18: 160 | F18: 1378.89 | G18: CREDIT
A19: 732109599583 | B19: 2021-08-24 | C19: DEPOSIT ONLINE 2194070 TFR Westpac Cas | E19: 400 | F19: 1218.89 | G19: CREDIT
A20: 732109599583 | B20: 2021-08-23 | C20: WITHDRAWAL AT PRG ATM ORMEAU 37012517064324 200821 | D20: 170 | F20: 818.89 | G20: CASH
A21: 732109599583 | B21: 2021-08-23 | C21: EFTPOS DEBIT 0641686 7-ELEVEN 4177 GREENSLOPES 21/08 | D21: 129.54 | F21: 988.89 | G21: POS
A22: 732109599583 | B22: 2021-08-23 | C22: EFTPOS DEBIT 0012804 LATIN MANA PTY LTD WEST END 21/08 | D22: 25.39 | F22: 1118.43 | G22: POS
A23: 732109599583 | B23: 2021-08-23 | C23: EFTPOS DEBIT 0012803 LATIN MANA PTY LTD WEST END 21/08 | D23: 77 | F23: 1143.82 | G23: POS
A24: 732109599583 | B24: 2021-08-23 | C24: EFTPOS DEBIT 0002091 ALDI STORES - PIMPAM A PIMPAMA 22/08 | D24: 192.97 | F24: 1220.82 | G24: POS
A25: 732109599583 | B25: 2021-08-23 | C25: WITHDRAWAL-OSKO PAYMENT 1257405 Adrian 21 AUG 2021 | D25: 10000 | F25: 1413.79 | G25: PAYMENT
A26: 732109599583 | B26: 2021-08-23 | C26: DEBIT CARD PURCHASE BUNNINGS 487000 UNDERWOOD AUS | D26: 131.16 | F26: 11413.79 | G26: PAYMENT
A27: 732109599583 | B27: 2021-08-23 | C27: DEBIT CARD PURCHASE KMART 1258 COOMERA AUS | D27: 63 | F27: 11544.95 | G27: PAYMENT
A28: 732109599583 | B28: 2021-08-23 | C28: DEBIT CARD PURCHASE AMAZON MKTPLC AU SYDNEY SOUTH AUS | D28: 40.99 | F28: 11607.95 | G28: PAYMENT
A29: 732109599583 | B29: 2021-08-23 | C29: DEBIT CARD PURCHASE BP CONNECT 1933 UPPER COOMER AUS | D29: 30.17 | F29: 11648.94 | G29: PAYMENT
A30: 732109599583 | B30: 2021-08-23 | C30: DEBIT CARD PURCHASE PAYPAL *DISNEYPLUS 4029357733 AUS | D30: 11.99 | F30: 11679.11 | G30: PAYMENT
A31: 732109599583 | B31: 2021-08-23 | C31: DEPOSIT ONLINE 2266665 TFR Westpac Cas | E31: 200 | F31: 11691.1 | G31: CREDIT
A32: 732109599583 | B32: 2021-08-23 | C32: DEPOSIT ONLINE 2009953 TFR Westpac Cas | E32: 1000 | F32: 11491.1 | G32: CREDIT
A33: 732109599583 | B33: 2021-08-20 | C33: EFTPOS DEBIT 0619807 Gecko Vending - Wara rbWamuran 20/08 | D33: 2.2 | F33: 10491.1 | G33: POS
A34: 732109599583 | B34: 2021-08-20 | C34: EFTPOS DEBIT 0033401 SINGSING JAPANESE PT Y ORMEAU 20/08 | D34: 31.5 | F34: 10493.3 | G34: POS
A35: 732109599583 | B35: 2021-08-20 | C35: DEBIT CARD PURCHASE MED*ALDIMobile CHATSWOOD AUS | D35: 45 | F35: 10524.8 | G35: PAYMENT
A36: 732109599583 | B36: 2021-08-19 | C36: EFTPOS DEBIT 0135057 COLES 4437 ORMEAU 19/08 | D36: 18.95 | F36: 10569.8 | G36: POS
A37: 732109599583 | B37: 2021-08-19 | C37: WITHDRAWAL MOBILE 5647300 BPAY COGC - RAT | D37: 871.26 | F37: 10588.75 | G37: PAYMENT
A38: 732109599583 | B38: 2021-08-19 | C38: WITHDRAWAL MOBILE 4664784 BPAY GCCC - WAT | D38: 428.39 | F38: 11460.01 | G38: PAYMENT
A39: 732109599583 | B39: 2021-08-19 | C39: WITHDRAWAL MOBILE 3399986 BPAY DBS CHILDC | D39: 600 | F39: 11888.4 | G39: PAYMENT
A40: 732109599583 | B40: 2021-08-19 | C40: WITHDRAWAL-OSKO PAYMENT 1058821 Adrian | D40: 10000 | F40: 12488.4 | G40: PAYMENT
A41: 732109599583 | B41: 2021-08-19 | C41: DEBIT CARD PURCHASE N I S PACKAGING AND PA UNDERWOOD AUS | D41: 284.11 | F41: 22488.4 | G41: PAYMENT
A42: 732109599583 | B42: 2021-08-19 | C42: DEBIT CARD PURCHASE COLES 4437 ORMEAU AUS | D42: 10 | F42: 22772.51 | G42: PAYMENT
A43: 732109599583 | B43: 2021-08-19 | C43: DEBIT CARD PURCHASE AMAZON MKTPLC AU SYDNEY SOUTH AUS | D43: 8.99 | F43: 22782.51 | G43: PAYMENT
A44: 732109599583 | B44: 2021-08-19 | C44: DEBIT CARD PURCHASE WOOLWORTHS 2727 ORMEAU AUS | D44: 6.82 | F44: 22791.5 | G44: PAYMENT
A45: 732109599583 | B45: 2021-08-19 | C45: DEBIT CARD PURCHASE SM CLOVER PTY LTD ORMEAU AUS | D45: 6 | F45: 22798.32 | G45: PAYMENT
A46: 732109599583 | B46: 2021-08-19 | C46: DEPOSIT ONLINE 2998212 TFR Westpac Cas | E46: 1000 | F46: 22804.32 | G46: CREDIT
A47: 732109599583 | B47: 2021-08-19 | C47: DEPOSIT ONLINE 2949236 TFR Westpac Cas | E47: 1000 | F47: 21804.32 | G47: CREDIT
A48: 732109599583 | B48: 2021-08-19 | C48: DEPOSIT ONLINE 2050683 TFR Fixed Optio | E48: 10000 | F48: 20804.32 | G48: CREDIT
A49: 732109599583 | B49: 2021-08-19 | C49: DEPOSIT-OSKO PAYMENT REVERSAL 1058821 19 Aug 2021 CH21 Unable to complete payment | E49: 10000 | F49: 10804.32 | G49: DEP
A50: 732109599583 | B50: 2021-08-18 | C50: EFTPOS DEBIT 0668642 Provender Australia Waterloo 18/08 | D50: 5.2 | F50: 804.32 | G50: POS
A51: 732109599583 | B51: 2021-08-18 | C51: DEBIT CARD PURCHASE PAYPAL *EBAY AU 4029357733 AUS | D51: 179.8 | F51: 809.52 | G51: PAYMENT
A52: 732109599583 | B52: 2021-08-18 | C52: DEPOSIT ONLINE 2496799 TFR Westpac Cas | E52: 500 | F52: 989.32 | G52: CREDIT
A53: 732109599583 | B53: 2021-08-17 | C53: EFTPOS DEBIT 0133934 ALDI STORES - PIMPAM A PIMPAMA 16/08 | D53: 57.01 | F53: 489.32 | G53: POS
A54: 732109599583 | B54: 2021-08-17 | C54: EFTPOS DEBIT 0129539 COLES 4437 ORMEAU 17/08 | D54: 10 | F54: 546.33 | G54: POS
A55: 732109599583 | B55: 2021-08-17 | C55: EFTPOS DEBIT 0040864 COLES 8736 ORMEAU 17/08 | D55: 25 | F55: 556.33 | G55: POS
A56: 732109599583 | B56: 2021-08-17 | C56: EFTPOS DEBIT 0017374 BUNNINGS 612000 PIMPAMA 16/08 | D56: 7.48 | F56: 581.33 | G56: POS
A57: 732109599583 | B57: 2021-08-17 | C57: EFTPOS DEBIT 0004968 BUNNINGS 612000 PIMPAMA 16/08 | D57: 115.59 | F57: 588.81 | G57: POS
A58: 732109599583 | B58: 2021-08-17 | C58: DEBIT CARD PURCHASE SANCHURROS HARBOURTOWN BIGGERA WATE AUS | D58: 3 | F58: 704.4 | G58: PAYMENT
A59: 732109599583 | B59: 2021-08-17 | C59: EFTPOS CREDIT 0007497 BUNNINGS 612000 PIMPAMA 16/08 | E59: 14.46 | F59: 707.4 | G59: DEP
A60: 732109599583 | B60: 2021-08-17 | C60: EFTPOS CREDIT 0004594 BUNNINGS 612000 PIMPAMA 16/08 | E60: 7.48 | F60: 692.94 | G60: DEP
A61: 732109599583 | B61: 2021-08-16 | C61: WITHDRAWAL AT PRG ATM ORMEAU 37012517069824 140821 | D61: 250 | F61: 685.46 | G61: CASH
A62: 732109599583 | B62: 2021-08-16 | C62: WITHDRAWAL AT HANDYBANK OXENFORD 12625205 15/08/21 | D62: 50 | F62: 935.46 | G62: CASH
A63: 732109599583 | B63: 2021-08-16 | C63: EFTPOS DEBIT 0987359 Lindt Gold Coast 189 Brisbane 16/08 | D63: 5.3 | F63: 985.46 | G63: POS
A64: 732109599583 | B64: 2021-08-16 | C64: EFTPOS DEBIT 0986620 Lindt Gold Coast 189 Brisbane 16/08 | D64: 6.3 | F64: 990.76 | G64: POS
A65: 732109599583 | B65: 2021-08-16 | C65: EFTPOS DEBIT 0919348 Subway Ormeau 174 Pascoe Ro 15/08 | D65: 10.25 | F65: 997.06 | G65: POS
A66: 732109599583 | B66: 2021-08-16 | C66: EFTPOS DEBIT 0193638 CK UNDERWEAR AU BIGG BIGGERA WATE 16/08 | D66: 215.84 | F66: 1007.31 | G66: POS
A67: 732109599583 | B67: 2021-08-16 | C67: EFTPOS DEBIT 0031998 ADIDAS AUSTRALIA PTY BIGGERA WATER 16/08 | D67: 128 | F67: 1223.15 | G67: POS
A68: 732109599583 | B68: 2021-08-16 | C68: EFTPOS DEBIT 0021311 COLES 8736 ORMEAU 15/08 | D68: 3.91 | F68: 1351.15 | G68: POS
A69: 732109599583 | B69: 2021-08-16 | C69: DEBIT CARD PURCHASE TRANSPORTMAINRDS BRISBANE AUS | D69: 823.26 | F69: 1355.06 | G69: PAYMENT
A70: 732109599583 | B70: 2021-08-16 | C70: DEBIT CARD PURCHASE BUNNINGS 343000 OXENFORD AUS | D70: 76.24 | F70: 2178.32 | G70: PAYMENT
A71: 732109599583 | B71: 2021-08-16 | C71: DEBIT CARD PURCHASE EG GROUP 2311 OXENFORD AUS | D71: 50.03 | F71: 2254.56 | G71: PAYMENT
A72: 732109599583 | B72: 2021-08-16 | C72: DEBIT CARD PURCHASE NANDOS COOMERA COOMERA AUS | D72: 45.2 | F72: 2304.59 | G72: PAYMENT
A73: 732109599583 | B73: 2021-08-16 | C73: DEBIT CARD PURCHASE Guzman y Gomez Biggera Wate AUS | D73: 21.9 | F73: 2349.79 | G73: PAYMENT
A74: 732109599583 | B74: 2021-08-16 | C74: DEPOSIT ONLINE 2923830 TFR Westpac Cas | E74: 200 | F74: 2371.69 | G74: CREDIT
A75: 732109599583 | B75: 2021-08-16 | C75: DEPOSIT ONLINE 2466109 TFR Westpac Cas | E75: 500 | F75: 2171.69 | G75: CREDIT
A76: 732109599583 | B76: 2021-08-16 | C76: DEPOSIT ONLINE 2365360 TFR Westpac Cas | E76: 200 | F76: 1671.69 | G76: CREDIT
A77: 732109599583 | B77: 2021-08-16 | C77: DEPOSIT ONLINE 2003080 TFR Westpac Cas | E77: 300 | F77: 1471.69 | G77: CREDIT
A78: 732109599583 | B78: 2021-08-13 | C78: EFTPOS DEBIT 0648467 Gecko Vending - Wara rbWamuran 13/08 | D78: 2.2 | F78: 1171.69 | G78: POS
A79: 732109599583 | B79: 2021-08-13 | C79: EFTPOS DEBIT 0177696 ALDI STORES - OXENFO RDOXENFORD 12/08 | D79: 238.66 | F79: 1173.89 | G79: POS
A80: 732109599583 | B80: 2021-08-13 | C80: DEPOSIT ONLINE 2351986 TFR Westpac Cas | E80: 1000 | F80: 1412.55 | G80: CREDIT
A81: 732109599583 | B81: 2021-08-12 | C81: CARDLESS CASH WITHDRAWAL AT PRG ATM ORMEAU 37012517073185 120821 | D81: 500 | F81: 412.55 | G81: DEBIT
A82: 732109599583 | B82: 2021-08-12 | C82: WITHDRAWAL AT PRG ATM ORMEAU 37012517073184 120821 | D82: 2000 | F82: 912.55 | G82: CASH
A83: 732109599583 | B83: 2021-08-12 | C83: PAYMENT BY AUTHORITY TO GENERAL INS HOME 1W5181852017121224 | D83: 48.51 | F83: 2912.55 | G83: PAYMENT
A84: 732109599583 | B84: 2021-08-12 | C84: EFTPOS DEBIT 0905590 LIV*NOEGO COFFEE CO 0002 ORMEAU 12/08 | D84: 45.4 | F84: 2961.06 | G84: POS
A85: 732109599583 | B85: 2021-08-12 | C85: EFTPOS DEBIT 0031492 IZGARA GRILL BY ORIG INCOOMERA 12/08 | D85: 7.7 | F85: 3006.46 | G85: POS
A86: 732109599583 | B86: 2021-08-12 | C86: DEPOSIT ONLINE 2141856 TFR Westpac Cas | E86: 500 | F86: 3014.16 | G86: CREDIT
A87: 732109599583 | B87: 2021-08-11 | C87: WITHDRAWAL AT PRG ATM ORMEAU 37012517062533 110821 | D87: 2000 | F87: 2514.16 | G87: CASH
A88: 732109599583 | B88: 2021-08-11 | C88: PAYMENT BY AUTHORITY TO GENFITTRAINING 325327444 | D88: 61 | F88: 4514.16 | G88: PAYMENT
A89: 732109599583 | B89: 2021-08-11 | C89: DEBIT CARD PURCHASE SINGSING JAPANESE PTY ORMEAU AUS | D89: 29.2 | F89: 4575.16 | G89: PAYMENT
A90: 732109599583 | B90: 2021-08-10 | C90: CARDLESS CASH WITHDRAWAL AT PRG ATM ORMEAU 37012517056019 100821 | D90: 500 | F90: 4604.36 | G90: DEBIT
A91: 732109599583 | B91: 2021-08-10 | C91: EFTPOS DEBIT 0688224 Gecko Vending - Wara rbWamuran 10/08 | D91: 3.6 | F91: 5104.36 | G91: POS
A92: 732109599583 | B92: 2021-08-10 | C92: EFTPOS DEBIT 0624915 Gecko Vending - Wara rbWamuran 10/08 | D92: 2.2 | F92: 5107.96 | G92: POS
A93: 732109599583 | B93: 2021-08-10 | C93: DEPOSIT ONLINE 2607832 TFR Westpac Cas | E93: 4000 | F93: 5110.16 | G93: CREDIT
A94: 732109599583 | B94: 2021-08-09 | C94: EFTPOS DEBIT 0092474 ALDI STORES - PIMPAM A PIMPAMA 06/08 | D94: 314.93 | F94: 1110.16 | G94: POS
A95: 732109599583 | B95: 2021-08-09 | C95: DEBIT CARD PURCHASE PAYPAL *DALEYSFRUIT 4029357733 AUS | D95: 103.88 | F95: 1425.09 | G95: PAYMENT
A96: 732109599583 | B96: 2021-08-09 | C96: DEBIT CARD PURCHASE PAYPAL *MENULOGPTYL 01300664335 AUS | D96: 46.49 | F96: 1528.97 | G96: PAYMENT
A97: 732109599583 | B97: 2021-08-09 | C97: DEBIT CARD PURCHASE PAYPAL *EBAY AU 4029357733 AUS | D97: 24.57 | F97: 1575.46 | G97: PAYMENT
A98: 732109599583 | B98: 2021-08-09 | C98: DEBIT CARD PURCHASE PAYPAL *EBAY AU 4029357733 AUS | D98: 17.99 | F98: 1600.03 | G98: PAYMENT
A99: 732109599583 | B99: 2021-08-09 | C99: DEBIT CARD PURCHASE PAYPAL *EBAY AU 4029357733 AUS | D99: 12.95 | F99: 1618.02 | G99: PAYMENT
A100: 732109599583 | B100: 2021-08-09 | C100: DEBIT CARD PURCHASE COLES 4437 ORMEAU AUS | D100: 9.4 | F100: 1630.97 | G100: PAYMENT
A101: 732109599583 | B101: 2021-08-09 | C101: DEBIT CARD PURCHASE PAYPAL *EBAY AU 4029357733 AUS | D101: 7.95 | F101: 1640.37 | G101: PAYMENT
A102: 732109599583 | B102: 2021-08-06 | C102: EFTPOS DEBIT 0562648 7 ELEVEN 4263 PIMPAMA 05/08 | D102: 10 | F102: 1648.32 | G102: POS
A103: 732109599583 | B103: 2021-08-06 | C103: EFTPOS DEBIT 0016379 BUNNINGS 612000 PIMPAMA 05/08 | D103: 146.98 | F103: 1658.32 | G103: POS
A104: 732109599583 | B104: 2021-08-06 | C104: DEBIT CARD PURCHASE RED ENERGY CREMORNE AUS | D104: 448.37 | F104: 1805.3 | G104: PAYMENT
A105: 732109599583 | B105: 2021-08-06 | C105: EFTPOS CREDIT 0004426 BUNNINGS 612000 PIMPAMA 05/08 | E105: 40.6 | F105: 2253.67 | G105: DEP
A106: 732109599583 | B106: 2021-08-06 | C106: DEPOSIT ONLINE 2514080 TFR Westpac Cas | E106: 2000 | F106: 2213.07 | G106: CREDIT
A107: 732109599583 | B107: 2021-08-05 | C107: EFTPOS DEBIT 0901754 THE BURNSIDE TAVERN 0022 YATALA 05/08 | D107: 4.99 | F107: 213.07 | G107: POS
A108: 732109599583 | B108: 2021-08-05 | C108: DEBIT CARD PURCHASE GYG Upper Coomera Coomera AUS | D108: 42.9 | F108: 218.06 | G108: PAYMENT
A109: 732109599583 | B109: 2021-08-05 | C109: DEPOSIT ONLINE 2541060 TFR Westpac Cas | E109: 200 | F109: 260.96 | G109: CREDIT
A110: 732109599583 | B110: 2021-08-04 | C110: DEBIT CARD PURCHASE ALDI STORES - PIMPAMA PIMPAMA AUS | D110: 56.91 | F110: 60.96 | G110: PAYMENT
A111: 732109599583 | B111: 2021-08-03 | C111: EFTPOS DEBIT 0669229 Gecko Vending - Wara rbWamuran 03/08 | D111: 2.2 | F111: 117.87 | G111: POS
A112: 732109599583 | B112: 2021-08-03 | C112: EFTPOS DEBIT 0633252 Gecko Vending - Wara rbWamuran 03/08 | D112: 2.7 | F112: 120.07 | G112: POS
A113: 732109599583 | B113: 2021-08-03 | C113: EFTPOS DEBIT 0633169 Gecko Vending - Wara rbWamuran 03/08 | D113: 6.7 | F113: 122.77 | G113: POS
A114: 732109599583 | B114: 2021-08-02 | C114: PAYMENT BY AUTHORITY TO Linkt Brisbane 300711695270 | D114: 50 | F114: 129.47 | G114: PAYMENT
A115: 732109599583 | B115: 2021-08-02 | C115: EFTPOS DEBIT 0560636 7 ELEVEN 4263 PIMPAMA 31/07 | D115: 98.2 | F115: 179.47 | G115: POS
A116: 732109599583 | B116: 2021-08-02 | C116: EFTPOS DEBIT 0560631 7 ELEVEN 4263 PIMPAMA 31/07 | D116: 8.6 | F116: 277.67 | G116: POS
A117: 732109599583 | B117: 2021-08-02 | C117: EFTPOS DEBIT 0424302 CHEMIST WAREHOUSE \ ORMEAU 01/08 | D117: 14.88 | F117: 286.27 | G117: POS
A118: 732109599583 | B118: 2021-08-02 | C118: EFTPOS DEBIT 0401539 BWS 2030 EVERTON PARK 31/07 | D118: 18 | F118: 301.15 | G118: POS
A119: 732109599583 | B119: 2021-08-02 | C119: EFTPOS DEBIT 0057578 ORMEAU COUNTRY MARK\ ORMEAU 01/08 | D119: 18.09 | F119: 319.15 | G119: POS
A120: 732109599583 | B120: 2021-08-02 | C120: EFTPOS DEBIT 0025737 WOOLWORTHS 2727 ORMEAU 01/08 | D120: 54.48 | F120: 337.24 | G120: POS
A121: 732109599583 | B121: 2021-08-02 | C121: EFTPOS DEBIT 0004257 BUNNINGS 612000 PIMPAMA 31/07 | D121: 96.37 | F121: 391.72 | G121: POS
A122: 732109599583 | B122: 2021-08-02 | C122: DEBIT CARD PURCHASE AMAZON MKTPLC AU SYDNEY SOUTH AUS | D122: 58.84 | F122: 488.09 | G122: PAYMENT
A123: 732109599583 | B123: 2021-08-02 | C123: DEBIT CARD PURCHASE PAYPAL *MENULOGPTYL 01300664335 AUS | D123: 31.78 | F123: 546.93 | G123: PAYMENT
A124: 732109599583 | B124: 2021-08-02 | C124: DEBIT CARD PURCHASE ZARRAFFAS COOMERA COOMERA AUS | D124: 25.45 | F124: 578.71 | G124: PAYMENT
A125: 732109599583 | B125: 2021-08-02 | C125: DEPOSIT ONLINE 2176788 TFR Rocket Repa | E125: 250 | F125: 604.16 | G125: CREDIT
A126: 732109599583 | B126: 2021-08-02 | C126: DEPOSIT ONLINE 2103611 TFR Westpac Cas | E126: 200 | F126: 354.16 | G126: CREDIT
A127: 732109599583 | B127: 2021-07-30 | C127: EFTPOS DEBIT 0132175 ALDI STORES - PIMPAM A PIMPAMA 29/07 | D127: 180.19 | F127: 154.16 | G127: POS
A128: 732109599583 | B128: 2021-07-30 | C128: EFTPOS DEBIT 0032432 SINGSING JAPANESE PT Y ORMEAU 30/07 | D128: 13.5 | F128: 334.35 | G128: POS
A129: 732109599583 | B129: 2021-07-29 | C129: WITHDRAWAL-OSKO PAYMENT 1796511 Anngie Carolina Porras Vera Colombia Apartememt | D129: 420 | F129: 347.85 | G129: PAYMENT
A130: 732109599583 | B130: 2021-07-29 | C130: DEPOSIT ONLINE 2774874 TFR Rocket Repa | E130: 400 | F130: 767.85 | G130: CREDIT
A131: 732109599583 | B131: 2021-07-28 | C131: PAYMENT BY AUTHORITY TO GENFITTRAINING 321647481 | D131: 61 | F131: 367.85 | G131: PAYMENT
A132: 732109599583 | B132: 2021-07-28 | C132: EFTPOS DEBIT 0900971 THE BURNSIDE TAVERN 0024 YATALA 28/07 | D132: 18.8 | F132: 428.85 | G132: POS
A133: 732109599583 | B133: 2021-07-28 | C133: EFTPOS DEBIT 0113962 L/LAND QLD 6323 ORMEAU 28/07 | D133: 12 | F133: 447.65 | G133: POS
A134: 732109599583 | B134: 2021-07-28 | C134: EFTPOS DEBIT 0078096 COLES 4437 ORMEAU 28/07 | D134: 14.15 | F134: 459.65 | G134: POS
A135: 732109599583 | B135: 2021-07-27 | C135: EFTPOS DEBIT 0091338 ALDI STORES - PIMPAM A PIMPAMA 26/07 | D135: 302.07 | F135: 473.8 | G135: POS
A136: 732109599583 | B136: 2021-07-26 | C136: CARDLESS CASH WITHDRAWAL AT PRG ATM ORMEAU 37012517069708 240721 | D136: 170 | F136: 775.87 | G136: DEBIT
A137: 732109599583 | B137: 2021-07-26 | C137: CARDLESS CASH WITHDRAWAL AT PRG ATM ORMEAU 37012517050882 250721 | D137: 40 | F137: 945.87 | G137: DEBIT
A138: 732109599583 | B138: 2021-07-26 | C138: CARDLESS CASH WITHDRAWAL AT HANDYBANK OXENFORD 12625001 25/07/21 | D138: 100 | F138: 985.87 | G138: DEBIT
A139: 732109599583 | B139: 2021-07-26 | C139: EFTPOS DEBIT 0943685 7-ELEVEN 4213 OXENFORD 25/07 | D139: 1 | F139: 1085.87 | G139: POS
A140: 732109599583 | B140: 2021-07-26 | C140: EFTPOS DEBIT 0620978 Gecko Vending - Wara rbWamuran 26/07 | D140: 2.2 | F140: 1086.87 | G140: POS
A141: 732109599583 | B141: 2021-07-26 | C141: EFTPOS DEBIT 0153390 7-ELEVEN 4128 OXENFORD 25/07 | D141: 88.9 | F141: 1089.07 | G141: POS
A142: 732109599583 | B142: 2021-07-26 | C142: EFTPOS DEBIT 0109569 ALDI STORES - PIMPAM A PIMPAMA 24/07 | D142: 46.13 | F142: 1177.97 | G142: POS
A143: 732109599583 | B143: 2021-07-26 | C143: EFTPOS DEBIT 0035946 COLES 8736 ORMEAU 24/07 | D143: 33.05 | F143: 1224.1 | G143: POS
A144: 732109599583 | B144: 2021-07-26 | C144: EFTPOS DEBIT 0015433 BUNNINGS 612000 PIMPAMA 24/07 | D144: 10.92 | F144: 1257.15 | G144: POS
A145: 732109599583 | B145: 2021-07-26 | C145: DEBIT CARD PURCHASE AMAZON MKTPLC AU SYDNEY SOUTH AUS | D145: 42.98 | F145: 1268.07 | G145: PAYMENT
A146: 732109599583 | B146: 2021-07-26 | C146: DEBIT CARD PURCHASE BUNNINGS 612000 PIMPAMA AUS | D146: 36.3 | F146: 1311.05 | G146: PAYMENT
A147: 732109599583 | B147: 2021-07-26 | C147: DEBIT CARD PURCHASE GULLIVER SWIM & SPORTS UPPER COOMER AUS | D147: 21.5 | F147: 1347.35 | G147: PAYMENT
A148: 732109599583 | B148: 2021-07-26 | C148: DEBIT CARD PURCHASE PAYPAL *SPOTIFY 35314369001 GBR | D148: 11.99 | F148: 1368.85 | G148: PAYMENT
A149: 732109599583 | B149: 2021-07-26 | C149: DEPOSIT ONLINE 2845757 TFR Rocket Repa | E149: 500 | F149: 1380.84 | G149: CREDIT
A150: 732109599583 | B150: 2021-07-26 | C150: DEPOSIT ONLINE 2816326 TFR Westpac Cas | E150: 200 | F150: 880.84 | G150: CREDIT
A151: 732109599583 | B151: 2021-07-26 | C151: DEPOSIT ONLINE 2799031 TFR Westpac Cas | E151: 170 | F151: 680.84 | G151: CREDIT
A152: 732109599583 | B152: 2021-07-26 | C152: DEPOSIT ONLINE 2709988 TFR Westpac Cas | E152: 100 | F152: 510.84 | G152: CREDIT
A153: 732109599583 | B153: 2021-07-26 | C153: DEPOSIT ONLINE 2706942 TFR Westpac Cas | E153: 100 | F153: 410.84 | G153: CREDIT
A154: 732109599583 | B154: 2021-07-26 | C154: DEPOSIT ONLINE 2619246 TFR Westpac Cas | E154: 80 | F154: 310.84 | G154: CREDIT
A155: 732109599583 | B155: 2021-07-26 | C155: DEPOSIT ONLINE 2510432 TFR Westpac Cas | E155: 80 | F155: 230.84 | G155: CREDIT
A156: 732109599583 | B156: 2021-07-23 | C156: EFTPOS DEBIT 0982391 MCDONALDS ORMEAU 1315 ORMEAU 23/07 | D156: 6.8 | F156: 150.84 | G156: POS
A157: 732109599583 | B157: 2021-07-23 | C157: EFTPOS DEBIT 0642589 Gecko Vending - Wara rbWamuran 23/07 | D157: 2.2 | F157: 157.64 | G157: POS
A158: 732109599583 | B158: 2021-07-23 | C158: EFTPOS DEBIT 0035868 COLES 8736 ORMEAU 23/07 | D158: 33.05 | F158: 159.84 | G158: POS
A159: 732109599583 | B159: 2021-07-23 | C159: EFTPOS DEBIT 0032109 SINGSING JAPANESE PT Y ORMEAU 23/07 | D159: 16.4 | F159: 192.89 | G159: POS
A160: 732109599583 | B160: 2021-07-22 | C160: EFTPOS DEBIT 0625424 Gecko Vending - Wara rbWamuran 22/07 | D160: 2.2 | F160: 209.29 | G160: POS
A161: 732109599583 | B161: 2021-07-22 | C161: EFTPOS DEBIT 0284731 Extraction Artisan C o Slacks Creek 22/07 | D161: 17.5 | F161: 211.49 | G161: POS
A162: 732109599583 | B162: 2021-07-22 | C162: EFTPOS CREDIT 3976942 Gecko Vending - WararbWamuran Q 21/07 | E162: 2.2 | F162: 228.99 | G162: DEP
A163: 732109599583 | B163: 2021-07-21 | C163: EFTPOS DEBIT 0996681 7-ELEVEN 4210 ORMEAU ORMEAU 21/07 | D163: 13 | F163: 226.79 | G163: POS
A164: 732109599583 | B164: 2021-07-21 | C164: EFTPOS DEBIT 0690026 Gecko Vending - Wara rbWamuran 21/07 | D164: 2.2 | F164: 239.79 | G164: POS
A165: 732109599583 | B165: 2021-07-21 | C165: EFTPOS DEBIT 0554523 7 ELEVEN 4263 PIMPAMA 20/07 | D165: 110.99 | F165: 241.99 | G165: POS
A166: 732109599583 | B166: 2021-07-21 | C166: EFTPOS DEBIT 0415160 Gecko Vending - Wara rbWamuran 21/07 | D166: 2.2 | F166: 352.98 | G166: POS
A167: 732109599583 | B167: 2021-07-21 | C167: EFTPOS DEBIT 0034755 COLES 4437 ORMEAU 21/07 | D167: 21.7 | F167: 355.18 | G167: POS
A168: 732109599583 | B168: 2021-07-21 | C168: EFTPOS DEBIT 0018108 POST LOGANHOLME POST SSHAILER PARK 21/07 | D168: 98 | F168: 376.88 | G168: POS
A169: 732109599583 | B169: 2021-07-21 | C169: EFTPOS DEBIT 0005495 BUNNINGS 612000 PIMPAMA 20/07 | D169: 140.73 | F169: 474.88 | G169: POS
A170: 732109599583 | B170: 2021-07-21 | C170: DEPOSIT ONLINE 2159975 TFR Westpac Cas | E170: 300 | F170: 615.61 | G170: CREDIT
A171: 732109599583 | B171: 2021-07-20 | C171: EFTPOS DEBIT 0270741 GYG Pimpama Pimpama 20/07 | D171: 18.6 | F171: 315.61 | G171: POS
A172: 732109599583 | B172: 2021-07-20 | C172: WITHDRAWAL MOBILE 3181737 BPAY DBS CHILDC | D172: 700 | F172: 334.21 | G172: PAYMENT
A173: 732109599583 | B173: 2021-07-20 | C173: DEBIT CARD PURCHASE MED*ALDIMobile CHATSWOOD AUS | D173: 45 | F173: 1034.21 | G173: PAYMENT
A174: 732109599583 | B174: 2021-07-20 | C174: DEPOSIT ONLINE 2220187 TFR Westpac Cas | E174: 1000 | F174: 1079.21 | G174: CREDIT
A175: 732109599583 | B175: 2021-07-19 | C175: EFTPOS DEBIT 0730987 DAN MURPHY'S 2758 OXENFORD 17/07 | D175: 105.89 | F175: 79.21 | G175: POS
A176: 732109599583 | B176: 2021-07-19 | C176: EFTPOS DEBIT 0200683 KMART 1230 Oxenford 17/07 | D176: 79.05 | F176: 185.1 | G176: POS
A177: 732109599583 | B177: 2021-07-19 | C177: EFTPOS DEBIT 0174207 ALDI STORES - OXENFO RDOXENFORD 17/07 | D177: 213.64 | F177: 264.15 | G177: POS
A178: 732109599583 | B178: 2021-07-19 | C178: EFTPOS DEBIT 0139499 DREAMWORLD COOMERA COOMERA 18/07 | D178: 36 | F178: 477.79 | G178: POS
A179: 732109599583 | B179: 2021-07-19 | C179: EFTPOS DEBIT 0138258 BUNNINGS 343000 OXENFORD 17/07 | D179: 25.9 | F179: 513.79 | G179: POS
A180: 732109599583 | B180: 2021-07-19 | C180: EFTPOS DEBIT 0119017 DREAMWORLD COOMERA COOMERA 18/07 | D180: 32.99 | F180: 539.69 | G180: POS
A181: 732109599583 | B181: 2021-07-19 | C181: EFTPOS DEBIT 0095462 BUNNINGS 343000 OXENFORD 17/07 | D181: 33.73 | F181: 572.68 | G181: POS
A182: 732109599583 | B182: 2021-07-19 | C182: EFTPOS DEBIT 0058661 DREAMWORLD COOMERA COOMERA 18/07 | D182: 41.13 | F182: 606.41 | G182: POS
A183: 732109599583 | B183: 2021-07-19 | C183: EFTPOS DEBIT 0046257 DREAMWORLD COOMERA COOMERA 18/07 | D183: 5.85 | F183: 647.54 | G183: POS
A184: 732109599583 | B184: 2021-07-19 | C184: EFTPOS DEBIT 0007290 PETBARN PTY LTD \ OXENFORD 17/07 | D184: 116.44 | F184: 653.39 | G184: POS
A185: 732109599583 | B185: 2021-07-19 | C185: DEBIT CARD PURCHASE Ardent Leisure eCommer Coomera AUS | D185: 238 | F185: 769.83 | G185: PAYMENT
A186: 732109599583 | B186: 2021-07-19 | C186: DEBIT CARD PURCHASE PAYPAL *EBAY AU 4029357733 AUS | D186: 19.5 | F186: 1007.83 | G186: PAYMENT
A187: 732109599583 | B187: 2021-07-19 | C187: DEPOSIT ONLINE 2494687 TFR Westpac Cas | E187: 300 | F187: 1027.33 | G187: CREDIT
A188: 732109599583 | B188: 2021-07-19 | C188: DEPOSIT ONLINE 2126416 TFR Westpac Cas | E188: 240 | F188: 727.33 | G188: CREDIT
A189: 732109599583 | B189: 2021-07-16 | C189: EFTPOS DEBIT 0492546 IKEA LOGAN SLACKS CREEK 16/07 | D189: 40 | F189: 487.33 | G189: POS
A190: 732109599583 | B190: 2021-07-16 | C190: EFTPOS DEBIT 0476800 IKEA LOGAN SLACKS CREEK 16/07 | D190: 21.45 | F190: 527.33 | G190: POS
A191: 732109599583 | B191: 2021-07-16 | C191: DEPOSIT ONLINE 2326797 TFR Westpac Cas | E191: 500 | F191: 548.78 | G191: CREDIT
A192: 732109599583 | B192: 2021-07-14 | C192: PAYMENT BY AUTHORITY TO GENFITTRAINING 317552237 | D192: 61 | F192: 48.78 | G192: PAYMENT
A193: 732109599583 | B193: 2021-07-14 | C193: EFTPOS DEBIT 0606327 Gecko Vending - Wara rbWamuran 14/07 | D193: 2.2 | F193: 109.78 | G193: POS
A194: 732109599583 | B194: 2021-07-14 | C194: EFTPOS DEBIT 0007869 SUSHI BREAK EXPRESS LOGANHOLME 14/07 | D194: 12 | F194: 111.98 | G194: POS
A195: 732109599583 | B195: 2021-07-13 | C195: EFTPOS DEBIT 0239891 7-ELEVEN 4210 ORMEAU ORMEAU 13/07 | D195: 98.13 | F195: 123.98 | G195: POS
A196: 732109599583 | B196: 2021-07-13 | C196: DEBIT CARD PURCHASE ALDI STORES - OXENFORD OXENFORD AUS | D196: 179.22 | F196: 222.11 | G196: PAYMENT
A197: 732109599583 | B197: 2021-07-12 | C197: PAYMENT BY AUTHORITY TO GENERAL INS HOME 1W5181852013921193 | D197: 48.51 | F197: 401.33 | G197: PAYMENT
A198: 732109599583 | B198: 2021-07-12 | C198: EFTPOS DEBIT 0623353 Gecko Vending - Wara rbWamuran 11/07 | D198: 3 | F198: 449.84 | G198: POS
A199: 732109599583 | B199: 2021-07-12 | C199: EFTPOS DEBIT 0623291 Gecko Vending - Wara rbWamuran 11/07 | D199: 2.4 | F199: 452.84 | G199: POS
A200: 732109599583 | B200: 2021-07-12 | C200: EFTPOS DEBIT 0039165 PEARL ENERGY PIMPAMA PIMPAMA 11/07 | D200: 40.1 | F200: 455.24 | G200: POS
... 786 more rows
